{"text_format":"3","workbook":"xlsx","n_sheets":26,"sheets":["Rozpoczęcie","1","2","3","4","5","6","7","8","9","10","11","12","13","14","15","16","17","18","19","20","21","22","23","24","Dowiedz się więcej"],"not_rendered":{"images":23,"defined_names":5,"pivot_tables":19},"read":"whole","date_system":"1900"}

{"sheet":"Rozpoczęcie","index":0,"n_rows":5,"n_cols":1,"rows_kept":5}
["Zapraszamy\nInstrukcje dotyczące czytnika zawartości ekranu: Lepsze wykorzystanie tabel przestawnych. Prosta tabela przestawna udostępnia ogólne podsumowanie danych, ale czasami potrzebujesz szczegółowych odpowiedzi na określone pytania. W ich uzyskaniu może być pomocne dodanie większej liczby pól kolumn i pól wierszy. \nW instrukcjach wskazano, do których komórek należy przejść, aby użyć funkcji lub przeczytać dalsze informacje.\nAby rozpocząć, naciśnij klawisze CTRL+PAGE DOWN."]
["Lepsze wykorzystanie tabel przestawnych"]
["Prosta tabela przestawna udostępnia ogólne podsumowanie danych, ale \nczasami potrzebujesz szczegółowych odpowiedzi na określone pytania. W ich \nuzyskaniu może być pomocne dodanie większej liczby pól kolumn i pól wierszy."]
["WARTO WIEDZIEĆ\nCzy skorzystano z pierwszego samouczka? Jeśli nie, przejdź do pozycji Plik > Nowy i znajdź szablon Utwórz swoją pierwszą tabelę przestawną."]
["Aby wrócić do początku, naciśnij klawisze CTRL+HOME. Aby uruchomić przewodnik, naciśnij klawisze CTRL+PAGE DOWN."]

{"sheet":"1","index":1,"n_rows":16,"n_cols":9,"rows_kept":16}
["W pierwszym samouczku przedstawiliśmy pojęcie tabeli przestawnej. Wyjaśniliśmy ponadto, jak można użyć pola wiersza jako warunku dzielącego pole wartości.   "]
["Komórki od H10 do I14 zawierają tabelę przestawną, w której podsumowano dane z komórek od B8 do E16. Tabela przestawna zawiera dwie kolumny: Kupujący i Suma z Kwota. Kolumna Kupujący zawiera wartości Tata, Mama, Aneta i Suma końcowa. Kolumna Suma z Kwota zawiera wartości 220 zł, 270 zł, 810 zł i 1 300 zł. Kolumna Kupujący składa się z pola Wiersza, a kolumna Suma z Kwota — z pola Wartości."]
["Aby kontynuować korzystanie z tego samouczka, naciśnij klawisze CTRL+PAGE DOWN. Aby wrócić do poprzedniego arkusza, naciśnij klawisze CTRL+PAGE UP."]
[]
[]
[]
[]
[null,"Data","Kupujący","Typ","Kwota"]
["W tym przykładzie pokazano, jak pole wiersza...","2017-01-01","Tata","Prezenty",{"v":95,"d":"95 zł"}]
["...dzieli pole wartości.","2017-01-15","Mama","Żywność",{"v":325,"d":"325 zł"},null,null,"Kupujący","Suma z Kwota"]
[null,"2017-01-17","Mama","Bilety",{"v":250,"d":"250 zł"},null,null,"Tata",{"v":220,"d":"220 zł"}]
[null,"2017-01-21","Tata","Żywność",{"v":125,"d":"125 zł"},null,null,"Aneta",{"v":270,"d":"270 zł"}]
[null,"2017-02-02","Mama","Żywność",{"v":235,"d":"235 zł"},null,null,"Mama",{"v":810,"d":"810 zł"}]
[null,"2017-02-20","Aneta","Muzyka",{"v":20,"d":"20 zł"},null,null,"Suma końcowa",{"v":1300,"d":"1,300 zł"}]
[null,"2017-02-25","Aneta","Bilety",{"v":125,"d":"125 zł"}]
[null,"2017-02-25","Aneta","Sport",{"v":125,"d":"125 zł"}]

{"sheet":"2","index":2,"n_rows":108,"n_cols":7,"rows_kept":108}
["Po pierwszym spojrzeniu na tabelę przestawną możesz jednak uznać, że potrzebujesz uzyskać na jej podstawie więcej odpowiedzi."]
["Po pierwszym spojrzeniu na tabelę przestawną możesz mieć pytania, takie jak „Kiedy miały miejsce te zakupy?”, „Na co wydały pieniądze poszczególne osoby?”, „Który zakup mamy był taki drogi?”."]
["W tym przykładzie w komórkach od F11 do G15 jest wyświetlana ta sama dwukolumnowa tabela przestawna co wcześniej. Kolumna Kupujący to pole Wiersz i zawiera wartości Tata, Mama, Aneta i Suma końcowa. Kolumna Suma z Kwota to pole Wartość i zawiera wartości 220 zł, 270 zł, 810 zł i 1 300 zł. "]
["Aby kontynuować korzystanie z tego samouczka, naciśnij klawisze CTRL+PAGE DOWN. Aby wrócić do poprzedniego arkusza, naciśnij klawisze CTRL+PAGE UP."]
[]
[]
[]
[]
[]
[]
[{"$nulls":5},"Kupujący","Suma z Kwota"]
[{"$nulls":5},"Tata",{"v":220,"d":"220 zł"}]
[{"$nulls":5},"Aneta",{"v":270,"d":"270 zł"}]
[{"$nulls":5},"Mama",{"v":810,"d":"810 zł"}]
[{"$nulls":5},"Suma końcowa",{"v":1300,"d":"1,300 zł"}]
{"$rows_empty":84}
[null,"Data","Kupujący","Typ","Kwota"]
[null,"2017-01-01","Tata","Prezenty",{"v":95,"d":"95 zł"}]
[null,"2017-01-15","Mama","Żywność",{"v":325,"d":"325 zł"}]
[null,"2017-01-17","Mama","Bilety",{"v":250,"d":"250 zł"}]
[null,"2017-01-21","Tata","Żywność",{"v":125,"d":"125 zł"}]
[null,"2017-02-02","Mama","Żywność",{"v":235,"d":"235 zł"}]
[null,"2017-02-20","Aneta","Muzyka",{"v":20,"d":"20 zł"}]
[null,"2017-02-25","Aneta","Bilety",{"v":125,"d":"125 zł"}]
[null,"2017-02-25","Aneta","Sport",{"v":125,"d":"125 zł"}]

{"sheet":"3","index":3,"n_rows":108,"n_cols":7,"rows_kept":108}
["Wszystkie te pytania są zasadne. W tym momencie skupmy się jednak tylko na jednym pytaniu."]
["Na co wydały pieniądze poszczególne osoby?"]
["Dla przypomnienia: w komórkach od F11 do G15 jest wyświetlana ta sama dwukolumnowa tabela przestawna co wcześniej. Kolumna Kupujący to pole Wiersz i zawiera wartości Tata, Mama, Aneta i Suma końcowa. Kolumna Suma z Kwota to pole Wartość i zawiera wartości 220 zł, 270 zł, 810 zł i 1 300 zł. "]
["Aby kontynuować korzystanie z tego samouczka, naciśnij klawisze CTRL+PAGE DOWN. Aby wrócić do poprzedniego arkusza, naciśnij klawisze CTRL+PAGE UP."]
[]
[]
[]
[]
[]
[]
[{"$nulls":5},"Kupujący","Suma z Kwota"]
[{"$nulls":5},"Tata",{"v":220,"d":"220 zł"}]
[{"$nulls":5},"Aneta",{"v":270,"d":"270 zł"}]
[{"$nulls":5},"Mama",{"v":810,"d":"810 zł"}]
[{"$nulls":5},"Suma końcowa",{"v":1300,"d":"1,300 zł"}]
{"$rows_empty":84}
[null,"Data","Kupujący","Typ","Kwota"]
[null,"2017-01-01","Tata","Prezenty",{"v":95,"d":"95 zł"}]
[null,"2017-01-15","Mama","Żywność",{"v":325,"d":"325 zł"}]
[null,"2017-01-17","Mama","Bilety",{"v":250,"d":"250 zł"}]
[null,"2017-01-21","Tata","Żywność",{"v":125,"d":"125 zł"}]
[null,"2017-02-02","Mama","Żywność",{"v":235,"d":"235 zł"}]
[null,"2017-02-20","Aneta","Muzyka",{"v":20,"d":"20 zł"}]
[null,"2017-02-25","Aneta","Bilety",{"v":125,"d":"125 zł"}]
[null,"2017-02-25","Aneta","Sport",{"v":125,"d":"125 zł"}]

{"sheet":"4","index":4,"n_rows":108,"n_cols":9,"rows_kept":108}
["Ostatnie zadane pytanie brzmiało: „Na co wydały pieniądze poszczególne osoby?”"]
["Odpowiedzieliśmy na to pytanie, dodając pole kolumny Typ. W rezultacie tabela przestawna zawiera teraz pięć nowych kolumn, w których są wyświetlane typy zakupów dokonanych przez poszczególne osoby. "]
["Nasza nowa tabela przestawna znajduje się teraz w komórkach od C10 do I15 i zawiera kolumny Kupujący, Żywność, Muzyka, Sport, Bilety, Prezenty i Suma końcowa. Kolumny Kupujący i Suma końcowa nie uległy zmianie, a między nimi znajdują się nowe kolumny ze szczegółami."]
["Aby kontynuować korzystanie z tego samouczka, naciśnij klawisze CTRL+PAGE DOWN. Aby wrócić do poprzedniego arkusza, naciśnij klawisze CTRL+PAGE UP."]
[]
[]
[]
[]
[]
[null,null,"Suma z Kwota","Typ"]
[null,null,"Kupujący","Żywność","Muzyka","Sport","Bilety","Prezenty","Suma końcowa"]
[null,null,"Tata",{"v":125,"d":"125 zł"},{"$nulls":3},{"v":95,"d":"95 zł"},{"v":220,"d":"220 zł"}]
[null,null,"Aneta",null,{"v":20,"d":"20 zł"},{"v":125,"d":"125 zł"},{"v":125,"d":"125 zł"},null,{"v":270,"d":"270 zł"}]
[null,null,"Mama",{"v":560,"d":"560 zł"},null,null,{"v":250,"d":"250 zł"},null,{"v":810,"d":"810 zł"}]
[null,null,"Suma końcowa",{"v":685,"d":"685 zł"},{"v":20,"d":"20 zł"},{"v":125,"d":"125 zł"},{"v":375,"d":"375 zł"},{"v":95,"d":"95 zł"},{"v":1300,"d":"1,300 zł"}]
{"$rows_empty":84}
[null,"Data","Kupujący","Typ","Kwota"]
[null,"2017-01-01","Tata","Prezenty",{"v":95,"d":"95 zł"}]
[null,"2017-01-15","Mama","Żywność",{"v":325,"d":"325 zł"}]
[null,"2017-01-17","Mama","Bilety",{"v":250,"d":"250 zł"}]
[null,"2017-01-21","Tata","Żywność",{"v":125,"d":"125 zł"}]
[null,"2017-02-02","Mama","Żywność",{"v":235,"d":"235 zł"}]
[null,"2017-02-20","Aneta","Muzyka",{"v":20,"d":"20 zł"}]
[null,"2017-02-25","Aneta","Bilety",{"v":125,"d":"125 zł"}]
[null,"2017-02-25","Aneta","Sport",{"v":125,"d":"125 zł"}]

{"sheet":"5","index":5,"n_rows":108,"n_cols":9,"rows_kept":108}
["Jeśli tabela przestawna jest niezrozumiała, wypróbuj to: Czytaj od lewej, następnie od góry, a następnie w dół. W poniższym przykładzie wartość Tata znajduje się w komórce C12, wartość Żywność za 125 zł — w komórce D12, wartość Prezenty za 95 zł — w komórce E12, a suma końcowa równa 220 zł — w komórce I12. W wierszach 13 i 14 są wyświetlane szczegóły dotyczące Anety i mamy, a w wierszu 15 — suma końcowa."]
["Aby kontynuować korzystanie z tego samouczka, naciśnij klawisze CTRL+PAGE DOWN. Aby wrócić do poprzedniego arkusza, naciśnij klawisze CTRL+PAGE UP."]
{"$rows_empty":7}
[null,null,"Suma z Kwota","Typ"]
[null,null,"Kupujący","Żywność","Prezenty","Muzyka","Sport","Bilety","Suma końcowa"]
[null,null,"Tata",{"v":125,"d":"125 zł"},{"v":95,"d":"95 zł"},{"$nulls":3},{"v":220,"d":"220 zł"}]
[null,null,"Aneta",null,null,{"v":20,"d":"20 zł"},{"v":125,"d":"125 zł"},{"v":125,"d":"125 zł"},{"v":270,"d":"270 zł"}]
[null,null,"Mama",{"v":560,"d":"560 zł"},{"$nulls":3},{"v":250,"d":"250 zł"},{"v":810,"d":"810 zł"}]
[null,null,"Suma końcowa",{"v":685,"d":"685 zł"},{"v":95,"d":"95 zł"},{"v":20,"d":"20 zł"},{"v":125,"d":"125 zł"},{"v":375,"d":"375 zł"},{"v":1300,"d":"1,300 zł"}]
{"$rows_empty":84}
[null,"Data","Kupujący","Typ","Kwota"]
[null,"2017-01-01","Tata","Prezenty",95]
[null,"2017-01-15","Mama","Żywność",325]
[null,"2017-01-17","Mama","Bilety",250]
[null,"2017-01-21","Tata","Żywność",125]
[null,"2017-02-02","Mama","Żywność",235]
[null,"2017-02-20","Aneta","Muzyka",20]
[null,"2017-02-25","Aneta","Bilety",125]
[null,"2017-02-25","Aneta","Sport",125]

{"sheet":"6","index":6,"n_rows":3,"n_cols":1,"rows_kept":3}
["Teraz jeszcze tego nie rób, ale po wykonaniu kilku kolejnych kroków zaczniesz pracę z tabelą przestawną. W pierwszej kolejności utworzysz dane szczegółowe w polu Kolumny. Zrobisz to, umieszczając pole Typ w obszarze pola Kolumny."]
["Obraz listy pól tabeli przestawnej z kursorem w postaci strzałki przeciągającym pole Typ do obszaru Kolumny."]
["Aby kontynuować korzystanie z tego samouczka, naciśnij klawisze CTRL+PAGE DOWN. Aby wrócić do poprzedniego arkusza, naciśnij klawisze CTRL+PAGE UP."]

{"sheet":"7","index":7,"n_rows":108,"n_cols":8,"rows_kept":108}
["1. Obszar tabeli przestawnej w tym przykładzie znajduje się w komórkach od B13 do C17. Przejdź do dowolnej z tych komórek."]
["2. Naciśnij klawisze ALT+JZ, L2, aby otworzyć listę pola tabeli przestawnej. Domyślnie fokus zostanie ustawiony na polu tekstowym wyszukaj: „Wpisz wyrazy do wyszukania” — edycja. Nie wpisuj niczego. Zamiast tego naciśnij jeden raz klawisz Tab. UWAGA: jeśli nie zostanie wyświetlona lista pól, ponownie naciśnij klawisze ALT+JZ, L2."]
["3. Naciśnij klawisze strzałek, aby wybrać pole Typ. Po jego wybraniu naciśnij klawisz SPACJA, aby dodać pole Typ do obszaru Wiersze. "]
["4. Naciśnij klawisze strzałek, aby wybrać pole Typ w obszarze Wiersze. Naciśnij klawisz SPACJA, aby dodać pole Typ do obszaru Kolumny. Naciśnij klawisz ESC, aby opuścić okienko pola tabeli przestawnej. "]
["Aby kontynuować korzystanie z tego samouczka, naciśnij klawisze CTRL+PAGE DOWN. Aby wrócić do poprzedniego arkusza, naciśnij klawisze CTRL+PAGE UP."]
["1. Komórki od B13 do D30 to obszar tabeli przestawnej. Przejdź do dowolnej z tych komórek. \n\n2. Naciśnij klawisze ALT+JZ, L2, aby otworzyć listę pola tabeli przestawnej. Domyślnie fokus zostanie ustawiony na polu tekstowym wyszukaj: „Wpisz wyrazy do wyszukania” — edycja. Nie wpisuj niczego. Zamiast tego naciśnij jeden raz klawisz Tab. \n\n3. Naciskaj klawisze strzałek, aby przejść do pola Kwota. Naciśnij klawisz SPACJA, aby dodać pole Kwota do obszaru Wartości. \n\n4. Naciskaj klawisze strzałek, aby przejść do pola Kupujący. Naciśnij klawisz SPACJA, aby dodać pole Kupujący do obszaru Wiersze. Naciśnij klawisz ESC, aby opuścić okienko pól tabeli przestawnej. "]
[]
[]
[3,{"$nulls":6},{"$f":"IF(AND($B$14=\"Kupujący\",$H$17=810),\"Doskonale! Umieszczono pole\",\" \")","v":" "}]
[2,{"$nulls":6},{"$f":"IF(AND($B$14=\"Kupujący\",$H$17=810),\"pierwszej kolumny. Kliknij przycisk\",\" \")","v":" "}]
["Ćwiczenia ",{"$nulls":6},{"$f":"IF(AND($B$14=\"Kupujący\",$H$17=810),\"Dalej, aby kontynuować...\",\" \")","v":" "}]
[4]
[null,"Kupujący","Suma z Kwota"]
[null,"Tata",{"v":220,"d":"220 zł"}]
[null,"Aneta",{"v":270,"d":"270 zł"}]
[null,"Mama",{"v":810,"d":"810 zł"}]
[null,"Suma końcowa",{"v":1300,"d":"1,300 zł"}]
{"$rows_empty":82}
[null,"Data","Kupujący","Typ","Kwota"]
[null,"2017-01-01","Tata","Prezenty",95]
[null,"2017-01-15","Mama","Żywność",325]
[null,"2017-01-17","Mama","Bilety",250]
[null,"2017-01-21","Tata","Żywność",125]
[null,"2017-02-02","Mama","Żywność",235]
[null,"2017-02-20","Aneta","Muzyka",20]
[null,"2017-02-25","Aneta","Bilety",125]
[null,"2017-02-25","Aneta","Sport",125]

{"sheet":"8","index":8,"n_rows":108,"n_cols":9,"rows_kept":108}
["Przejrzyjmy właśnie utworzoną przez Ciebie tabelę przestawną. Tym razem jednak dodaliśmy trochę kolorów, aby ułatwić rozróżnianie pól wierszy, kolumn i wartości."]
["Pole wiersza znajduje się w komórkach od C10 do C13. Jest zacieniowane w kolorze żółtym."]
["Pole kolumny znajduje się w komórkach od D9 do H10. Jest zacieniowane w kolorze pomarańczowym."]
["Pole wartości znajduje się w komórkach od D11 do H13. Jest zacieniowane w kolorze niebieskim."]
["Aby kontynuować korzystanie z tego samouczka, naciśnij klawisze CTRL+PAGE DOWN. Aby wrócić do poprzedniego arkusza, naciśnij klawisze CTRL+PAGE UP."]
[]
[]
[]
[null,null,"Suma z Kwota","Typ"]
[null,null,"Kupujący","Żywność","Prezenty","Muzyka","Sport","Bilety","Suma końcowa"]
[null,null,"Tata",{"v":125,"d":"125 zł"},{"v":95,"d":"95 zł"},{"$nulls":3},{"v":220,"d":"220 zł"}]
[null,null,"Aneta",null,null,{"v":20,"d":"20 zł"},{"v":125,"d":"125 zł"},{"v":125,"d":"125 zł"},{"v":270,"d":"270 zł"}]
[null,null,"Mama",{"v":560,"d":"560 zł"},{"$nulls":3},{"v":250,"d":"250 zł"},{"v":810,"d":"810 zł"}]
[null,null,"Suma końcowa",{"v":685,"d":"685 zł"},{"v":95,"d":"95 zł"},{"v":20,"d":"20 zł"},{"v":125,"d":"125 zł"},{"v":375,"d":"375 zł"},{"v":1300,"d":"1,300 zł"}]
{"$rows_empty":85}
[null,"Data","Kupujący","Typ","Kwota"]
[null,"2017-01-01","Tata","Prezenty",95]
[null,"2017-01-15","Mama","Żywność",325]
[null,"2017-01-17","Mama","Bilety",250]
[null,"2017-01-21","Tata","Żywność",125]
[null,"2017-02-02","Mama","Żywność",235]
[null,"2017-02-20","Aneta","Muzyka",20]
[null,"2017-02-25","Aneta","Bilety",125]
[null,"2017-02-25","Aneta","Sport",125]

{"sheet":"9","index":9,"n_rows":3,"n_cols":1,"rows_kept":3}
["Oto inny sposób, w jaki można na to spojrzeć: Pole wiersza znajduje się po lewej stronie, a pole kolumny — u góry. Oba te pola zawierają warunek dla pola wartości, które zawiera ich sumę."]
["Poglądowa ilustracja przedstawia zawierający 4 sekcje prostokątny obszar z pole wiersza po lewej dolnej stronie w kolorze żółtym, pole kolumny po prawej górnej stronie w kolorze pomarańczowym i pole wartości po prawej dolnej stronie w kolorze niebieskim."]
["Aby kontynuować korzystanie z tego samouczka, naciśnij klawisze CTRL+PAGE DOWN. Aby wrócić do poprzedniego arkusza, naciśnij klawisze CTRL+PAGE UP."]

{"sheet":"10","index":10,"n_rows":3,"n_cols":1,"rows_kept":3}
["Podasz korzystania z listy pól odczytuj tabelę przestawną właśnie w ten sposób. Pole wiersza znajduje się po lewej stronie, a pole kolumny — u góry. Oba te pola zawierają warunek dla pola wartości, które zawiera ich sumę."]
["Poglądowa ilustracja przedstawia listę pół tabeli przestawnej wyświetloną z pole wiersza po lewej dolnej stronie w kolorze żółtym, pole kolumny po prawej górnej stronie w kolorze pomarańczowym i pole wartości po prawej dolnej stronie w kolorze niebieskim."]
["Aby kontynuować korzystanie z tego samouczka, naciśnij klawisze CTRL+PAGE DOWN. Aby wrócić do poprzedniego arkusza, naciśnij klawisze CTRL+PAGE UP."]

{"sheet":"11","index":11,"n_rows":121,"n_cols":24,"rows_kept":121}
["Zapamiętaj: Jeśli pole kolumny dodaje wiele kolumn do tabeli przestawnej, będzie ona bardzo szeroka. "]
["W tym przykładzie tabela przestawna znajduje się teraz w komórkach od C10 do X15, ponieważ pole kolumny dodało 20 nowych kolumn. To ogromna liczba kolumn. W rezultacie trzeba będzie dużo przewijać tabelę przestawną..."]
["Aby kontynuować korzystanie z tego samouczka, naciśnij klawisze CTRL+PAGE DOWN. Aby wrócić do poprzedniego arkusza, naciśnij klawisze CTRL+PAGE UP."]
[]
[]
[]
[]
[]
[]
[null,null,"Suma z Kwota","Typ"]
[null,null,"Kupujący","Artykuły medyczne","Bilety","Energia elektryczna","Koszt przelotu","Książki","Lekcje muzyki","Muzyka","Opieka stomatologiczna","Opłaty za klub","Paliwo","Parkowanie samochodu","Podatki","Restauracje","Sport","Sprzęt elektroniczny","Ubezpieczenie domu","Ubezpieczenie samochodu","Ubezpieczenie zdrowotne","Ubrania","Żywność","Suma końcowa"]
[null,null,"Tata",{"$nulls":3},{"v":500,"d":"500 zł"},{"$nulls":7},{"v":500,"d":"500 zł"},null,{"v":1000,"d":"1,000 zł"},{"$nulls":6},{"v":2000,"d":"2,000 zł"}]
[null,null,"Aneta",null,{"v":125,"d":"125 zł"},null,null,{"v":250,"d":"250 zł"},{"v":250,"d":"250 zł"},{"v":20,"d":"20 zł"},{"$nulls":3},{"v":20,"d":"20 zł"},null,{"v":20,"d":"20 zł"},null,{"v":125,"d":"125 zł"},{"$nulls":3},{"v":125,"d":"125 zł"},null,{"v":935,"d":"935 zł"}]
[null,null,"Mama",{"v":74,"d":"74 zł"},null,{"v":70,"d":"70 zł"},{"$nulls":4},{"v":235,"d":"235 zł"},{"v":125,"d":"125 zł"},{"v":74,"d":"74 zł"},{"$nulls":5},{"v":235,"d":"235 zł"},{"v":74,"d":"74 zł"},{"v":70,"d":"70 zł"},null,{"v":470,"d":"470 zł"},{"v":1427,"d":"1,427 zł"}]
[null,null,"Suma końcowa",{"v":74,"d":"74 zł"},{"v":125,"d":"125 zł"},{"v":70,"d":"70 zł"},{"v":500,"d":"500 zł"},{"v":250,"d":"250 zł"},{"v":250,"d":"250 zł"},{"v":20,"d":"20 zł"},{"v":235,"d":"235 zł"},{"v":125,"d":"125 zł"},{"v":74,"d":"74 zł"},{"v":20,"d":"20 zł"},{"v":500,"d":"500 zł"},{"v":20,"d":"20 zł"},{"v":1000,"d":"1,000 zł"},{"v":125,"d":"125 zł"},{"v":235,"d":"235 zł"},{"v":74,"d":"74 zł"},{"v":70,"d":"70 zł"},{"v":125,"d":"125 zł"},{"v":470,"d":"470 zł"},{"v":4362,"d":"4,362 zł"}]
{"$rows_empty":84}
[null,"Data","Kupujący","Typ","Kwota"]
[null,"2017-01-17","Tata","Sport",{"v":1000,"d":"1,000 zł"}]
[null,"2017-01-17","Tata","Koszt przelotu",{"v":500,"d":"500 zł"}]
[null,"2017-01-17","Tata","Podatki",{"v":500,"d":"500 zł"}]
[null,"2017-02-20","Aneta","Muzyka",{"v":20,"d":"20 zł"}]
[null,"2017-02-25","Aneta","Bilety",{"v":125,"d":"125 zł"}]
[null,"2017-01-21","Aneta","Książki",{"v":250,"d":"250 zł"}]
[null,"2017-02-20","Aneta","Restauracje",{"v":20,"d":"20 zł"}]
[null,"2017-02-25","Aneta","Ubrania",{"v":125,"d":"125 zł"}]
[null,"2017-01-21","Aneta","Lekcje muzyki",{"v":250,"d":"250 zł"}]
[null,"2017-02-20","Aneta","Parkowanie samochodu",{"v":20,"d":"20 zł"}]
[null,"2017-02-25","Aneta","Sprzęt elektroniczny",{"v":125,"d":"125 zł"}]
[null,"2017-01-01","Mama","Paliwo",{"v":74,"d":"74 zł"}]
[null,"2017-01-15","Mama","Żywność",{"v":235,"d":"235 zł"}]
[null,"2017-01-21","Mama","Opłaty za klub",{"v":125,"d":"125 zł"}]
[null,"2017-02-02","Mama","Żywność",{"v":235,"d":"235 zł"}]
[null,"2017-01-01","Mama","Artykuły medyczne",{"v":74,"d":"74 zł"}]
[null,"2017-01-15","Mama","Energia elektryczna",{"v":70,"d":"70 zł"}]
[null,"2017-02-02","Mama","Opieka stomatologiczna",{"v":235,"d":"235 zł"}]
[null,"2017-01-01","Mama","Ubezpieczenie samochodu",{"v":74,"d":"74 zł"}]
[null,"2017-01-15","Mama","Ubezpieczenie zdrowotne",{"v":70,"d":"70 zł"}]
[null,"2017-02-02","Mama","Ubezpieczenie domu",{"v":235,"d":"235 zł"}]

{"sheet":"12","index":12,"n_rows":119,"n_cols":5,"rows_kept":119}
["Zamiast korzystać z bardzo szerokich tabel przestawnych, można użyć pole drugiego wiersza. Pole drugiego wiersza będzie wyświetlane z wcięciem pod polem pierwszego wiersza."]
["W tym przykładzie tabela przestawna znajduje się w komórkach od D8 do E32. Są w niej wyświetlane pole pierwszego wiersza Tata, Aneta i Mama w kolumnie D. Pod nimi znajdują pole drugiego wiersza z typami wydatków, takimi jak Sport, Koszt przelotu, Restauracje itd."]
["WARTO WIEDZIEĆ\nPole drugiego wiersza powoduje, że tabela przestawna ma orientację pionową, a nie poziomą. Dla niektórych osób pionowe tabele przestawne są bardziej czytelne, ponieważ nie wymagają w tak dużym stopniu przewijania w poziomie."]
["EXCEL MÓWI\nCzasami pole drugiego wiersza jest nazywane „polem wiersza dodatkowego”."]
["Aby kontynuować korzystanie z tego samouczka, naciśnij klawisze CTRL+PAGE DOWN. Aby wrócić do poprzedniego arkusza, naciśnij klawisze CTRL+PAGE UP."]
[]
[]
[{"$nulls":3},"Etykiety wierszy","Suma z Kwota"]
[{"$nulls":3},"Tata",{"v":2000,"d":"2,000 zł"}]
[{"$nulls":3},"Koszt przelotu",{"v":500,"d":"500 zł"}]
[{"$nulls":3},"Podatki",{"v":500,"d":"500 zł"}]
[{"$nulls":3},"Sport",{"v":1000,"d":"1,000 zł"}]
[{"$nulls":3},"Aneta",{"v":935,"d":"935 zł"}]
[{"$nulls":3},"Bilety",{"v":125,"d":"125 zł"}]
[{"$nulls":3},"Książki",{"v":250,"d":"250 zł"}]
[{"$nulls":3},"Lekcje muzyki",{"v":250,"d":"250 zł"}]
[{"$nulls":3},"Muzyka",{"v":20,"d":"20 zł"}]
[{"$nulls":3},"Parkowanie samochodu",{"v":20,"d":"20 zł"}]
[{"$nulls":3},"Restauracje",{"v":20,"d":"20 zł"}]
[{"$nulls":3},"Sprzęt elektroniczny",{"v":125,"d":"125 zł"}]
[{"$nulls":3},"Ubrania",{"v":125,"d":"125 zł"}]
[{"$nulls":3},"Mama",{"v":1427,"d":"1,427 zł"}]
[{"$nulls":3},"Artykuły medyczne",{"v":74,"d":"74 zł"}]
[{"$nulls":3},"Energia elektryczna",{"v":70,"d":"70 zł"}]
[{"$nulls":3},"Opieka stomatologiczna",{"v":235,"d":"235 zł"}]
[{"$nulls":3},"Opłaty za klub",{"v":125,"d":"125 zł"}]
[{"$nulls":3},"Paliwo",{"v":74,"d":"74 zł"}]
[{"$nulls":3},"Ubezpieczenie domu",{"v":235,"d":"235 zł"}]
[{"$nulls":3},"Ubezpieczenie samochodu",{"v":74,"d":"74 zł"}]
[{"$nulls":3},"Ubezpieczenie zdrowotne",{"v":70,"d":"70 zł"}]
[{"$nulls":3},"Żywność",{"v":470,"d":"470 zł"}]
[{"$nulls":3},"Suma końcowa",{"v":4362,"d":"4,362 zł"}]
{"$rows_empty":65}
[null,"Data","Kupujący","Typ","Kwota"]
[null,"2017-01-17","Tata","Sport",{"v":1000,"d":"1,000 zł"}]
[null,"2017-01-17","Tata","Koszt przelotu",{"v":500,"d":"500 zł"}]
[null,"2017-01-17","Tata","Podatki",{"v":500,"d":"500 zł"}]
[null,"2017-02-20","Aneta","Muzyka",{"v":20,"d":"20 zł"}]
[null,"2017-02-25","Aneta","Bilety",{"v":125,"d":"125 zł"}]
[null,"2017-01-21","Aneta","Książki",{"v":250,"d":"250 zł"}]
[null,"2017-02-20","Aneta","Restauracje",{"v":20,"d":"20 zł"}]
[null,"2017-02-25","Aneta","Ubrania",{"v":125,"d":"125 zł"}]
[null,"2017-01-21","Aneta","Lekcje muzyki",{"v":250,"d":"250 zł"}]
[null,"2017-02-20","Aneta","Parkowanie samochodu",{"v":20,"d":"20 zł"}]
[null,"2017-02-25","Aneta","Sprzęt elektroniczny",{"v":125,"d":"125 zł"}]
[null,"2017-01-01","Mama","Paliwo",{"v":74,"d":"74 zł"}]
[null,"2017-01-15","Mama","Żywność",{"v":235,"d":"235 zł"}]
[null,"2017-01-21","Mama","Opłaty za klub",{"v":125,"d":"125 zł"}]
[null,"2017-02-02","Mama","Żywność",{"v":235,"d":"235 zł"}]
[null,"2017-01-01","Mama","Artykuły medyczne",{"v":74,"d":"74 zł"}]
[null,"2017-01-15","Mama","Energia elektryczna",{"v":70,"d":"70 zł"}]
[null,"2017-02-02","Mama","Opieka stomatologiczna",{"v":235,"d":"235 zł"}]
[null,"2017-01-01","Mama","Ubezpieczenie samochodu",{"v":74,"d":"74 zł"}]
[null,"2017-01-15","Mama","Ubezpieczenie zdrowotne",{"v":70,"d":"70 zł"}]
[null,"2017-02-02","Mama","Ubezpieczenie domu",{"v":235,"d":"235 zł"}]

{"sheet":"13","index":13,"n_rows":3,"n_cols":1,"rows_kept":3}
["W następnym arkuszu dodaj pole drugiego wiersza. W tym celu umieść pole Typ poniżej pola Kupujący w polu Wiersze."]
["Obraz listy pola tabeli przestawnej z kursorem w postaci strzałki przeciągającym pole Typ do obszaru Wiersze."]
["Aby kontynuować korzystanie z tego samouczka, naciśnij klawisze CTRL+PAGE DOWN. Aby wrócić do poprzedniego arkusza, naciśnij klawisze CTRL+PAGE UP."]

{"sheet":"14","index":14,"n_rows":122,"n_cols":9,"rows_kept":122}
["1. Obszar tabeli przestawnej w tym przykładzie znajduje się w komórkach od B13 do C17. Przejdź do dowolnej z tych komórek. "]
["2. Naciśnij klawisze ALT+JZ, L2, aby otworzyć listę pola tabeli przestawnej. Domyślnie fokus zostanie ustawiony na polu tekstowym wyszukaj: „Wpisz wyrazy do wyszukania” — edycja. Nie wpisuj niczego. Zamiast tego naciśnij jeden raz klawisz Tab. UWAGA: jeśli nie zostanie wyświetlona lista pól, ponownie naciśnij klawisze ALT+JZ, L2."]
["3. Naciskaj klawisze strzałek, aby przejść do pola Typ. Naciśnij klawisz SPACJA, aby dodać pole Typ do obszaru Wiersze. "]
["4. Naciśnij klawisz ESC, aby opuścić okienko pola tabeli przestawnej. "]
["Aby kontynuować korzystanie z tego samouczka, naciśnij klawisze CTRL+PAGE DOWN. Aby wrócić do poprzedniego arkusza, naciśnij klawisze CTRL+PAGE UP.",{"$nulls":7},{"$f":"IF(AND($B$15=\"Koszt przelotu\",$C$36=470),\"Bardzo dobrze. Dodano pole\",\" \")","v":" "}]
[{"$nulls":8},{"$f":"IF(AND($B$15=\"Koszt przelotu\",$C$36=470),\"drugiego wiersza do tabeli\",\" \")","v":" "}]
[{"$nulls":8},{"$f":"IF(AND($B$15=\"Koszt przelotu\",$C$36=470),\"przestawnej. Przewiń w dół\",\" \")","v":" "}]
[{"$nulls":8},{"$f":"IF(AND($B$15=\"Koszt przelotu\",$C$36=470),\"i kliknij przycisk Dalej…\",\" \")","v":" "}]
[]
[]
[]
[]
[null,"Etykiety wierszy","Suma z Kwota"]
[null,"Tata",{"v":2000,"d":"2,000 zł"}]
[null,"Aneta",{"v":935,"d":"935 zł"}]
[null,"Mama",{"v":1427,"d":"1,427 zł"}]
[null,"Suma końcowa",{"v":4362,"d":"4,362 zł"}]
{"$rows_empty":83}
[null,"Data","Kupujący","Typ","Kwota"]
[null,"2017-01-17","Tata","Sport",{"v":1000,"d":"1,000 zł"}]
[null,"2017-01-17","Tata","Koszt przelotu",{"v":500,"d":"500 zł"}]
[null,"2017-01-17","Tata","Podatki",{"v":500,"d":"500 zł"}]
[null,"2017-02-20","Aneta","Muzyka",{"v":20,"d":"20 zł"}]
[null,"2017-02-25","Aneta","Bilety",{"v":125,"d":"125 zł"}]
[null,"2017-01-21","Aneta","Książki",{"v":250,"d":"250 zł"}]
[null,"2017-02-20","Aneta","Restauracje",{"v":20,"d":"20 zł"}]
[null,"2017-02-25","Aneta","Ubrania",{"v":125,"d":"125 zł"}]
[null,"2017-01-21","Aneta","Lekcje muzyki",{"v":250,"d":"250 zł"}]
[null,"2017-02-20","Aneta","Parkowanie samochodu",{"v":20,"d":"20 zł"}]
[null,"2017-02-25","Aneta","Sprzęt elektroniczny",{"v":125,"d":"125 zł"}]
[null,"2017-01-01","Mama","Paliwo",{"v":74,"d":"74 zł"}]
[null,"2017-01-15","Mama","Żywność",{"v":235,"d":"235 zł"}]
[null,"2017-01-21","Mama","Opłaty za klub",{"v":125,"d":"125 zł"}]
[null,"2017-02-02","Mama","Żywność",{"v":235,"d":"235 zł"}]
[null,"2017-01-01","Mama","Artykuły medyczne",{"v":74,"d":"74 zł"}]
[null,"2017-01-15","Mama","Energia elektryczna",{"v":70,"d":"70 zł"}]
[null,"2017-02-02","Mama","Opieka stomatologiczna",{"v":235,"d":"235 zł"}]
[null,"2017-01-01","Mama","Ubezpieczenie samochodu",{"v":74,"d":"74 zł"}]
[null,"2017-01-15","Mama","Ubezpieczenie zdrowotne",{"v":70,"d":"70 zł"}]
[null,"2017-02-02","Mama","Ubezpieczenie domu",{"v":235,"d":"235 zł"}]

{"sheet":"15","index":15,"n_rows":121,"n_cols":7,"rows_kept":121}
["Aby uprościć tabelę przestawną, możesz całkowicie zwinąć dane pola drugiego wiersza. "]
["Tabela przestawna w tym przykładzie znajduje się w komórkach od F7 do G31. Wybierz komórkę F8, aby wybrać pole pierwszego wiersza dla pola Tata. Następnie naciśnij klawisze ALT+JZ > I1, aby rozwinąć drugie pole, lub klawisz W, aby je zwinąć."]
["Aby kontynuować korzystanie z tego samouczka, naciśnij klawisze CTRL+PAGE DOWN. Aby wrócić do poprzedniego arkusza, naciśnij klawisze CTRL+PAGE UP."]
[]
[]
[{"$nulls":5},{"$f":"IF(AND($F$9=\"Aneta\",$G$9=935),\"Dobrze.\",\" \")","v":" "}]
[{"$nulls":5},"Etykiety wierszy","Suma z Kwota"]
[{"$nulls":5},"Tata",{"v":2000,"d":"2,000 zł"}]
[{"$nulls":5},"Koszt przelotu",{"v":500,"d":"500 zł"}]
[{"$nulls":5},"Podatki",{"v":500,"d":"500 zł"}]
[{"$nulls":5},"Sport",{"v":1000,"d":"1,000 zł"}]
[{"$nulls":5},"Aneta",{"v":935,"d":"935 zł"}]
[{"$nulls":5},"Bilety",{"v":125,"d":"125 zł"}]
[{"$nulls":5},"Książki",{"v":250,"d":"250 zł"}]
[{"$nulls":5},"Lekcje muzyki",{"v":250,"d":"250 zł"}]
[{"$nulls":5},"Muzyka",{"v":20,"d":"20 zł"}]
[{"$nulls":5},"Parkowanie samochodu",{"v":20,"d":"20 zł"}]
[{"$nulls":5},"Restauracje",{"v":20,"d":"20 zł"}]
[{"$nulls":5},"Sprzęt elektroniczny",{"v":125,"d":"125 zł"}]
[{"$nulls":5},"Ubrania",{"v":125,"d":"125 zł"}]
[{"$nulls":5},"Mama",{"v":1427,"d":"1,427 zł"}]
[{"$nulls":5},"Artykuły medyczne",{"v":74,"d":"74 zł"}]
[{"$nulls":5},"Energia elektryczna",{"v":70,"d":"70 zł"}]
[{"$nulls":5},"Opieka stomatologiczna",{"v":235,"d":"235 zł"}]
[{"$nulls":5},"Opłaty za klub",{"v":125,"d":"125 zł"}]
[{"$nulls":5},"Paliwo",{"v":74,"d":"74 zł"}]
[{"$nulls":5},"Ubezpieczenie domu",{"v":235,"d":"235 zł"}]
[{"$nulls":5},"Ubezpieczenie samochodu",{"v":74,"d":"74 zł"}]
[{"$nulls":5},"Ubezpieczenie zdrowotne",{"v":70,"d":"70 zł"}]
[{"$nulls":5},"Żywność",{"v":470,"d":"470 zł"}]
[{"$nulls":5},"Suma końcowa",{"v":4362,"d":"4,362 zł"}]
{"$rows_empty":68}
[null,"Data","Kupujący","Typ","Kwota"]
[null,"2017-01-17","Tata","Sport",{"v":1000,"d":"1,000 zł"}]
[null,"2017-01-17","Tata","Koszt przelotu",{"v":500,"d":"500 zł"}]
[null,"2017-01-17","Tata","Podatki",{"v":500,"d":"500 zł"}]
[null,"2017-02-20","Aneta","Muzyka",{"v":20,"d":"20 zł"}]
[null,"2017-02-25","Aneta","Bilety",{"v":125,"d":"125 zł"}]
[null,"2017-01-21","Aneta","Książki",{"v":250,"d":"250 zł"}]
[null,"2017-02-20","Aneta","Restauracje",{"v":20,"d":"20 zł"}]
[null,"2017-02-25","Aneta","Ubrania",{"v":125,"d":"125 zł"}]
[null,"2017-01-21","Aneta","Lekcje muzyki",{"v":250,"d":"250 zł"}]
[null,"2017-02-20","Aneta","Parkowanie samochodu",{"v":20,"d":"20 zł"}]
[null,"2017-02-25","Aneta","Sprzęt elektroniczny",{"v":125,"d":"125 zł"}]
[null,"2017-01-01","Mama","Paliwo",{"v":74,"d":"74 zł"}]
[null,"2017-01-15","Mama","Żywność",{"v":235,"d":"235 zł"}]
[null,"2017-01-21","Mama","Opłaty za klub",{"v":125,"d":"125 zł"}]
[null,"2017-02-02","Mama","Żywność",{"v":235,"d":"235 zł"}]
[null,"2017-01-01","Mama","Artykuły medyczne",{"v":74,"d":"74 zł"}]
[null,"2017-01-15","Mama","Energia elektryczna",{"v":70,"d":"70 zł"}]
[null,"2017-02-02","Mama","Opieka stomatologiczna",{"v":235,"d":"235 zł"}]
[null,"2017-01-01","Mama","Ubezpieczenie samochodu",{"v":74,"d":"74 zł"}]
[null,"2017-01-15","Mama","Ubezpieczenie zdrowotne",{"v":70,"d":"70 zł"}]
[null,"2017-02-02","Mama","Ubezpieczenie domu",{"v":235,"d":"235 zł"}]

{"sheet":"16","index":16,"n_rows":121,"n_cols":7,"rows_kept":121}
["Możesz także zwinąć lub rozwinąć całe pole drugiego wiersza, aby jeszcze bardziej uprościć tabelę przestawną."]
["To sprawa kluczowa:"]
["Zaznacz zakres danych tabeli przestawnej w komórkach od F7 do G31, a następnie naciśnij klawisze ALT+JZ > W, aby zwinąć tę całą grupę. Naciśnięcie klawiszy ALT+JZ > I1 spowoduje natomiast rozwinięcie całej grupy."]
["Aby kontynuować korzystanie z tego samouczka, naciśnij klawisze CTRL+PAGE DOWN. Aby wrócić do poprzedniego arkusza, naciśnij klawisze CTRL+PAGE UP."]
[]
[{"$nulls":5},{"$f":"IF(AND($F$9=\"Aneta\",$G$9=935),\"Brawo!\",\" \")","v":" "}]
[{"$nulls":5},"Etykiety wierszy","Suma z Kwota"]
[{"$nulls":5},"Tata",{"v":2000,"d":"2,000 zł"}]
[{"$nulls":5},"Koszt przelotu",{"v":500,"d":"500 zł"}]
[{"$nulls":5},"Podatki",{"v":500,"d":"500 zł"}]
[{"$nulls":5},"Sport",{"v":1000,"d":"1,000 zł"}]
[{"$nulls":5},"Aneta",{"v":935,"d":"935 zł"}]
[{"$nulls":5},"Bilety",{"v":125,"d":"125 zł"}]
[{"$nulls":5},"Książki",{"v":250,"d":"250 zł"}]
[{"$nulls":5},"Lekcje muzyki",{"v":250,"d":"250 zł"}]
[{"$nulls":5},"Muzyka",{"v":20,"d":"20 zł"}]
[{"$nulls":5},"Parkowanie samochodu",{"v":20,"d":"20 zł"}]
[{"$nulls":5},"Restauracje",{"v":20,"d":"20 zł"}]
[{"$nulls":5},"Sprzęt elektroniczny",{"v":125,"d":"125 zł"}]
[{"$nulls":5},"Ubrania",{"v":125,"d":"125 zł"}]
[{"$nulls":5},"Mama",{"v":1427,"d":"1,427 zł"}]
[{"$nulls":5},"Artykuły medyczne",{"v":74,"d":"74 zł"}]
[{"$nulls":5},"Energia elektryczna",{"v":70,"d":"70 zł"}]
[{"$nulls":5},"Opieka stomatologiczna",{"v":235,"d":"235 zł"}]
[{"$nulls":5},"Opłaty za klub",{"v":125,"d":"125 zł"}]
[{"$nulls":5},"Paliwo",{"v":74,"d":"74 zł"}]
[{"$nulls":5},"Ubezpieczenie domu",{"v":235,"d":"235 zł"}]
[{"$nulls":5},"Ubezpieczenie samochodu",{"v":74,"d":"74 zł"}]
[{"$nulls":5},"Ubezpieczenie zdrowotne",{"v":70,"d":"70 zł"}]
[{"$nulls":5},"Żywność",{"v":470,"d":"470 zł"}]
[{"$nulls":5},"Suma końcowa",{"v":4362,"d":"4,362 zł"}]
{"$rows_empty":68}
[null,"Data","Kupujący","Typ","Kwota"]
[null,"2017-01-17","Tata","Sport",{"v":1000,"d":"1,000 zł"}]
[null,"2017-01-17","Tata","Koszt przelotu",{"v":500,"d":"500 zł"}]
[null,"2017-01-17","Tata","Podatki",{"v":500,"d":"500 zł"}]
[null,"2017-02-20","Aneta","Muzyka",{"v":20,"d":"20 zł"}]
[null,"2017-02-25","Aneta","Bilety",{"v":125,"d":"125 zł"}]
[null,"2017-01-21","Aneta","Książki",{"v":250,"d":"250 zł"}]
[null,"2017-02-20","Aneta","Restauracje",{"v":20,"d":"20 zł"}]
[null,"2017-02-25","Aneta","Ubrania",{"v":125,"d":"125 zł"}]
[null,"2017-01-21","Aneta","Lekcje muzyki",{"v":250,"d":"250 zł"}]
[null,"2017-02-20","Aneta","Parkowanie samochodu",{"v":20,"d":"20 zł"}]
[null,"2017-02-25","Aneta","Sprzęt elektroniczny",{"v":125,"d":"125 zł"}]
[null,"2017-01-01","Mama","Paliwo",{"v":74,"d":"74 zł"}]
[null,"2017-01-15","Mama","Żywność",{"v":235,"d":"235 zł"}]
[null,"2017-01-21","Mama","Opłaty za klub",{"v":125,"d":"125 zł"}]
[null,"2017-02-02","Mama","Żywność",{"v":235,"d":"235 zł"}]
[null,"2017-01-01","Mama","Artykuły medyczne",{"v":74,"d":"74 zł"}]
[null,"2017-01-15","Mama","Energia elektryczna",{"v":70,"d":"70 zł"}]
[null,"2017-02-02","Mama","Opieka stomatologiczna",{"v":235,"d":"235 zł"}]
[null,"2017-01-01","Mama","Ubezpieczenie samochodu",{"v":74,"d":"74 zł"}]
[null,"2017-01-15","Mama","Ubezpieczenie zdrowotne",{"v":70,"d":"70 zł"}]
[null,"2017-02-02","Mama","Ubezpieczenie domu",{"v":235,"d":"235 zł"}]

{"sheet":"17","index":17,"n_rows":107,"n_cols":13,"rows_kept":107}
["Możesz także umieścić kilka pól kolumn. One również mogą być zwinięte lub rozwinięte."]
["Tabela przestawna w tym przykładzie znajduje się w komórkach od B13 do M19. W tym przypadku mamy kategorię Typ w sekcji Kolumny, która zawiera pozycje z kategorii Żywność i Rachunki."]
["WYPRÓBUJ\nWybierz pole Jedzenie w komórce C14 i naciśnij klawisze ALT+JZ > W, aby zwinąć całe pole. Naciśnięcie klawiszy ALT+JZ > I1 spowoduje jego rozwinięcie."]
["Aby kontynuować korzystanie z tego samouczka, naciśnij klawisze CTRL+PAGE DOWN. Aby wrócić do poprzedniego arkusza, naciśnij klawisze CTRL+PAGE UP."]
{"$rows_empty":7}
[null,null,{"$f":"IF(AND($C$16=398,$D$15=\"Sty\"),\"Ładnie.\",\" \")","v":" "}]
[null,"Suma z Kwota","Etykiety kolumn"]
[null,null,"Żywność",{"$nulls":3},"Żywność Suma","Rachunki",{"$nulls":3},"Rachunki Suma","Suma końcowa"]
[null,"Etykiety wierszy","Sty","Lut","Mar","Kwi",null,"Sty","Lut","Mar","Kwi"]
[null,"Aneta",{"v":74,"d":"74 zł"},{"v":74,"d":"74 zł"},{"v":125,"d":"125 zł"},{"v":125,"d":"125 zł"},{"v":398,"d":"398 zł"},{"$nulls":5},{"v":398,"d":"398 zł"}]
[null,"Tata",{"v":235,"d":"235 zł"},{"v":235,"d":"235 zł"},{"v":235,"d":"235 zł"},{"v":74,"d":"74 zł"},{"v":779,"d":"779 zł"},{"$nulls":5},{"v":779,"d":"779 zł"}]
[null,"Mama",{"$nulls":5},{"v":1000,"d":"1,000 zł"},{"v":1000,"d":"1,000 zł"},{"v":20,"d":"20 zł"},{"v":70,"d":"70 zł"},{"v":2090,"d":"2,090 zł"},{"v":2090,"d":"2,090 zł"}]
[null,"Suma końcowa",{"v":309,"d":"309 zł"},{"v":309,"d":"309 zł"},{"v":360,"d":"360 zł"},{"v":199,"d":"199 zł"},{"v":1177,"d":"1,177 zł"},{"v":1000,"d":"1,000 zł"},{"v":1000,"d":"1,000 zł"},{"v":20,"d":"20 zł"},{"v":70,"d":"70 zł"},{"v":2090,"d":"2,090 zł"},{"v":3267,"d":"3,267 zł"}]
{"$rows_empty":75}
[null,"Miesiąc","Kupujący","Typ","Kwota"]
[null,"Sty","Aneta","Żywność",{"v":74,"d":"74 zł"}]
[null,"Sty","Tata","Żywność",{"v":235,"d":"235 zł"}]
[null,"Sty","Mama","Rachunki",{"v":1000,"d":"1,000 zł"}]
[null,"Lut","Aneta","Żywność",{"v":74,"d":"74 zł"}]
[null,"Lut","Tata","Żywność",{"v":235,"d":"235 zł"}]
[null,"Lut","Mama","Rachunki",{"v":1000,"d":"1,000 zł"}]
[null,"Mar","Aneta","Żywność",{"v":125,"d":"125 zł"}]
[null,"Mar","Tata","Żywność",{"v":235,"d":"235 zł"}]
[null,"Mar","Mama","Rachunki",{"v":20,"d":"20 zł"}]
[null,"Kwi","Aneta","Żywność",{"v":125,"d":"125 zł"}]
[null,"Kwi","Tata","Żywność",{"v":74,"d":"74 zł"}]
[null,"Kwi","Mama","Rachunki",{"v":70,"d":"70 zł"}]

{"sheet":"18","index":18,"n_rows":146,"n_cols":5,"rows_kept":146}
["Jest coś, o czym warto pamiętać. Jeśli potrzebujesz więcej szczegółów, możesz dodać znacznie większą liczbę pól wierszy lub pól kolumn. Ten przykład zawiera trzy pola wierszy."]
["Tabela przestawna w tym przykładzie znajduje się w komórkach od D8 do E29 i zawiera pola Pora roku, Kupujący i Typ w kolumnie D, oraz pole Suma z Kwota w kolumnie E"]
["PORADA EKSPERTA\nNie zawsze warto skorzystać z możliwości dodania kolejnych pól. W tym przykładzie dobrze się sprawdzają. Czasami jednak zbyt duża liczba pól z ich wszystkimi wcięciami może zbytnio skomplikować tabelę przestawną dla jej odbiorców. "]
["Aby kontynuować korzystanie z tego samouczka, naciśnij klawisze CTRL+PAGE DOWN. Aby wrócić do poprzedniego arkusza, naciśnij klawisze CTRL+PAGE UP."]
[]
[]
[]
[{"$nulls":3},"Etykiety wierszy","Suma z Kwota"]
[{"$nulls":3},"Jesień",{"v":5425,"d":"5,425 zł"}]
[{"$nulls":3},"Mama",{"v":5425,"d":"5,425 zł"}]
[{"$nulls":3},"Czynsz",{"v":3220,"d":"3,220 zł"}]
[{"$nulls":3},"Rachunki",{"v":933,"d":"933 zł"}]
[{"$nulls":3},"Ubezpieczenie",{"v":1272,"d":"1,272 zł"}]
[{"$nulls":3},"Wiosna",{"v":4760,"d":"4,760 zł"}]
[{"$nulls":3},"Tata",{"v":4760,"d":"4,760 zł"}]
[{"$nulls":3},"Czynsz",{"v":2400,"d":"2,400 zł"}]
[{"$nulls":3},"Rachunki",{"v":1320,"d":"1,320 zł"}]
[{"$nulls":3},"Ubezpieczenie",{"v":1040,"d":"1,040 zł"}]
[{"$nulls":3},"Lato",{"v":3473,"d":"3,473 zł"}]
[{"$nulls":3},"Mama",{"v":3473,"d":"3,473 zł"}]
[{"$nulls":3},"Czynsz",{"v":1260,"d":"1,260 zł"}]
[{"$nulls":3},"Rachunki",{"v":1133,"d":"1,133 zł"}]
[{"$nulls":3},"Ubezpieczenie",{"v":1080,"d":"1,080 zł"}]
[{"$nulls":3},"Zima",{"v":4100,"d":"4,100 zł"}]
[{"$nulls":3},"Tata",{"v":4100,"d":"4,100 zł"}]
[{"$nulls":3},"Czynsz",{"v":1420,"d":"1,420 zł"}]
[{"$nulls":3},"Rachunki",{"v":1650,"d":"1,650 zł"}]
[{"$nulls":3},"Ubezpieczenie",{"v":1030,"d":"1,030 zł"}]
[{"$nulls":3},"Suma końcowa",{"v":17758,"d":"17,758 zł"}]
{"$rows_empty":68}
[null,"Kupujący","Pora roku","Typ","Kwota"]
[null,"Tata","Zima","Ubezpieczenie",{"v":300,"d":"300 zł"}]
[null,"Tata","Zima","Czynsz",{"v":200,"d":"200 zł"}]
[null,"Tata","Zima","Rachunki",{"v":400,"d":"400 zł"}]
[null,"Tata","Zima","Ubezpieczenie",{"v":300,"d":"300 zł"}]
[null,"Tata","Zima","Czynsz",{"v":800,"d":"800 zł"}]
[null,"Tata","Zima","Rachunki",{"v":400,"d":"400 zł"}]
[null,"Tata","Zima","Ubezpieczenie",{"v":200,"d":"200 zł"}]
[null,"Tata","Zima","Czynsz",{"v":300,"d":"300 zł"}]
[null,"Tata","Zima","Rachunki",{"v":450,"d":"450 zł"}]
[null,"Tata","Zima","Ubezpieczenie",{"v":230,"d":"230 zł"}]
[null,"Tata","Zima","Czynsz",{"v":120,"d":"120 zł"}]
[null,"Tata","Zima","Rachunki",{"v":400,"d":"400 zł"}]
[null,"Tata","Wiosna","Ubezpieczenie",{"v":210,"d":"210 zł"}]
[null,"Tata","Wiosna","Czynsz",{"v":300,"d":"300 zł"}]
[null,"Tata","Wiosna","Rachunki",{"v":400,"d":"400 zł"}]
[null,"Tata","Wiosna","Ubezpieczenie",{"v":230,"d":"230 zł"}]
[null,"Tata","Wiosna","Czynsz",{"v":900,"d":"900 zł"}]
[null,"Tata","Wiosna","Rachunki",{"v":300,"d":"300 zł"}]
[null,"Tata","Wiosna","Ubezpieczenie",{"v":200,"d":"200 zł"}]
[null,"Tata","Wiosna","Czynsz",{"v":1000,"d":"1,000 zł"}]
[null,"Tata","Wiosna","Rachunki",{"v":220,"d":"220 zł"}]
[null,"Tata","Wiosna","Ubezpieczenie",{"v":400,"d":"400 zł"}]
[null,"Tata","Wiosna","Czynsz",{"v":200,"d":"200 zł"}]
[null,"Tata","Wiosna","Rachunki",{"v":400,"d":"400 zł"}]
[null,"Mama","Lato","Ubezpieczenie",{"v":100,"d":"100 zł"}]
[null,"Mama","Lato","Czynsz",{"v":30,"d":"30 zł"}]
[null,"Mama","Lato","Rachunki",{"v":123,"d":"123 zł"}]
[null,"Mama","Lato","Ubezpieczenie",{"v":300,"d":"300 zł"}]
[null,"Mama","Lato","Czynsz",{"v":350,"d":"350 zł"}]
[null,"Mama","Lato","Rachunki",{"v":230,"d":"230 zł"}]
[null,"Mama","Lato","Ubezpieczenie",{"v":120,"d":"120 zł"}]
[null,"Mama","Lato","Czynsz",{"v":640,"d":"640 zł"}]
[null,"Mama","Lato","Rachunki",{"v":530,"d":"530 zł"}]
[null,"Mama","Lato","Ubezpieczenie",{"v":560,"d":"560 zł"}]
[null,"Mama","Lato","Czynsz",{"v":240,"d":"240 zł"}]
[null,"Mama","Lato","Rachunki",{"v":250,"d":"250 zł"}]
[null,"Mama","Jesień","Ubezpieczenie",{"v":62,"d":"62 zł"}]
[null,"Mama","Jesień","Czynsz",{"v":600,"d":"600 zł"}]
[null,"Mama","Jesień","Rachunki",{"v":340,"d":"340 zł"}]
[null,"Mama","Jesień","Ubezpieczenie",{"v":205,"d":"205 zł"}]
[null,"Mama","Jesień","Czynsz",{"v":500,"d":"500 zł"}]
[null,"Mama","Jesień","Rachunki",{"v":403,"d":"403 zł"}]
[null,"Mama","Jesień","Ubezpieczenie",{"v":503,"d":"503 zł"}]
[null,"Mama","Jesień","Czynsz",{"v":2000,"d":"2,000 zł"}]
[null,"Mama","Jesień","Rachunki",{"v":140,"d":"140 zł"}]
[null,"Mama","Jesień","Ubezpieczenie",{"v":502,"d":"502 zł"}]
[null,"Mama","Jesień","Czynsz",{"v":120,"d":"120 zł"}]
[null,"Mama","Jesień","Rachunki",50]

{"sheet":"19","index":19,"n_rows":55,"n_cols":5,"rows_kept":55}
["Chcesz wykonać więcej ćwiczeń? Przejrzyj poniższe dane w komórkach od B7 do E55. Gdy wszystko będzie gotowe, przejdź do następnego arkusza, w którym przećwiczysz dotychczas zdobytą wiedzę. "]
["Nie musisz przeglądać wszystkich wierszy danych. Przejrzyj tylko nazwy pól w wierszu 7. Będziesz z nimi pracować w następnym arkuszu. "]
["Aby kontynuować korzystanie z tego samouczka, naciśnij klawisze CTRL+PAGE DOWN. Aby wrócić do poprzedniego arkusza, naciśnij klawisze CTRL+PAGE UP."]
[]
[]
[]
[null,"Pora roku","Przedstawiciel handlowy","Produkt","Liczba sprzedanych sztuk"]
[null,"Zima","Joanna","Pomarańcze",300]
[null,"Zima","Jerzy","Grejpfruty",200]
[null,"Zima","Roman","Jabłka",400]
[null,"Zima","Joanna","Banany",300]
[null,"Zima","Jerzy","Pomarańcze",800]
[null,"Zima","Roman","Grejpfruty",400]
[null,"Zima","Joanna","Jabłka",200]
[null,"Zima","Jerzy","Banany",300]
[null,"Zima","Roman","Pomarańcze",450]
[null,"Zima","Joanna","Grejpfruty",230]
[null,"Zima","Jerzy","Jabłka",120]
[null,"Zima","Roman","Banany",400]
[null,"Wiosna","Joanna","Buraki",210]
[null,"Wiosna","Jerzy","Ziemniaki",300]
[null,"Wiosna","Roman","Sałata",400]
[null,"Wiosna","Joanna","Rzodkiewki",230]
[null,"Wiosna","Jerzy","Buraki",900]
[null,"Wiosna","Roman","Ziemniaki",300]
[null,"Wiosna","Joanna","Sałata",200]
[null,"Wiosna","Jerzy","Rzodkiewki",1000]
[null,"Wiosna","Roman","Buraki",220]
[null,"Wiosna","Joanna","Ziemniaki",400]
[null,"Wiosna","Jerzy","Sałata",200]
[null,"Wiosna","Roman","Rzodkiewki",400]
[null,"Lato","Joanna","Borówki",100]
[null,"Lato","Jerzy","Truskawki",30]
[null,"Lato","Roman","Winogrona",123]
[null,"Lato","Joanna","Dynie",300]
[null,"Lato","Jerzy","Borówki",350]
[null,"Lato","Roman","Truskawki",230]
[null,"Lato","Joanna","Winogrona",120]
[null,"Lato","Jerzy","Dynie",640]
[null,"Lato","Roman","Borówki",530]
[null,"Lato","Joanna","Truskawki",560]
[null,"Lato","Jerzy","Winogrona",240]
[null,"Lato","Roman","Dynie",250]
[null,"Jesień","Joanna","Kabaczki",62]
[null,"Jesień","Jerzy","Cukinia",600]
[null,"Jesień","Roman","Jabłka",340]
[null,"Jesień","Joanna","Pomarańcze",205]
[null,"Jesień","Jerzy","Kabaczki",500]
[null,"Jesień","Roman","Cukinia",403]
[null,"Jesień","Joanna","Jabłka",503]
[null,"Jesień","Jerzy","Pomarańcze",2000]
[null,"Jesień","Roman","Kabaczki",140]
[null,"Jesień","Joanna","Cukinia",502]
[null,"Jesień","Jerzy","Jabłka",120]
[null,"Jesień","Roman","Pomarańcze",50]

{"sheet":"20","index":20,"n_rows":17,"n_cols":11,"rows_kept":17}
["1. Obszar tabeli przestawnej w tym przykładzie znajduje się w komórkach od B12 do C17. Przejdź do dowolnej z tych komórek. \n\n"]
["2. Naciśnij klawisze ALT+JZ, L2, aby otworzyć listę pól tabeli przestawnej. Domyślnie fokus zostanie ustawiony na polu tekstowym wyszukaj: „Wpisz wyrazy do wyszukania” — edycja. Nie wpisuj niczego. Zamiast tego naciśnij jeden raz klawisz Tab. UWAGA: jeśli nie zostanie wyświetlona lista pól, ponownie naciśnij klawisze ALT+JZ, L2."]
["3. Naciskaj klawisze strzałek, aby przejść do pola Przedstawiciel handlowy. Naciśnij klawisz SPACJA, aby dodać pole Przedstawiciel handlowy do obszaru Wiersze. Jeśli chcesz wyświetlić szczegóły pola Przedstawiciel handlowy w obszarze Kolumny, użyj klawiszy Tab, aby przejść do pola Przedstawiciel handlowy w sekcji Wiersz, a następnie naciśnij klawisz SPACJA i wybierz polecenie „Przenieś do etykiet kolumn”. Naciśnij klawisz ESC, aby opuścić okienko pól tabeli przestawnej. "]
["4. Ustal, kto sprzedał największą liczbę sztuk jesienią, a następnie dokonaj wyboru w komórce K8. "]
["Aby kontynuować korzystanie z tego samouczka, naciśnij klawisze CTRL+PAGE DOWN. Aby wrócić do poprzedniego arkusza, naciśnij klawisze CTRL+PAGE UP."]
[]
[{"$nulls":10},"Wybierz jedną z komórek:"]
[]
[{"$nulls":10},{"$f":"IF($K$8=\"Jerzy\",\"Dokładnie.\",IF($K$8=\"Roman\",\"Spróbuj ponownie...\",IF($K$8=\"Joanna\",\"Niezupełnie tak.\",IF($K$8=\" \",\" \",\" \"))))","v":" "}]
[]
[]
[null,"Etykiety wierszy","Suma z Liczba sprzedanych sztuk"]
[null,"Jesień",{"v":5425,"d":"5,425"}]
[null,"Lato",{"v":3473,"d":"3,473"}]
[null,"Wiosna",{"v":4760,"d":"4,760"}]
[null,"Zima",{"v":4100,"d":"4,100"}]
[null,"Suma końcowa",{"v":17758,"d":"17,758"}]

{"sheet":"21","index":21,"n_rows":14,"n_cols":10,"rows_kept":14}
["1. Kliknij komórkę B13, aby aktywować tabelę przestawną o nazwie „Suma z Liczba sprzedanych sztuk”.\n\n"]
["2. Naciśnij klawisze ALT+JZ, L2, aby otworzyć listę pól tabeli przestawnej. Domyślnie fokus zostanie ustawiony na polu tekstowym wyszukaj: „Wpisz wyrazy do wyszukania” — edycja. Nie wpisuj niczego. Zamiast tego naciśnij jeden raz klawisz Tab. UWAGA: jeśli nie zostanie wyświetlona lista pól, ponownie naciśnij klawisze ALT+JZ, L2."]
["3. Użyj klawiszy strzałek i klawisza SPACJA, aby rozwinąć przykład w pionową tabelę przestawną zawierającą pory roku po lewej stronie oraz przedstawicieli handlowych z wcięciami poniżej pór roku. Naciśnij klawisz ESC, aby zamknąć okienko pola tabeli przestawnej. "]
["Aby kontynuować korzystanie z tego samouczka, naciśnij klawisze CTRL+PAGE DOWN. Aby wrócić do poprzedniego arkusza, naciśnij klawisze CTRL+PAGE UP.",{"$nulls":8},{"$f":"IF(AND($B$14=\"Kupujący\",$I$18=1175),\"Doskonale! Umieszczono pole\",\" \")","v":" "}]
[{"$nulls":9},{"$f":"IF(AND(B$14=\"Jesień\",$C$17=933),\"Doskonale! Umieszczono pole\",\" \")","v":" "}]
[{"$nulls":9},{"$f":"IF(AND(B$14=\"Jesień\",$C$17=933),\"dodatkowego wiersza. Teraz przewiń\",\" \")","v":" "}]
[{"$nulls":9},{"$f":"IF(AND(B$14=\"Jesień\",$C$17=933),\"w dół i kliknij przycisk Dalej.\",\" \")","v":" "}]
[]
[]
[]
[]
[]
[null,"Suma z Liczba sprzedanych sztuk"]
[null,{"v":17758,"d":"17,758"}]

{"sheet":"22","index":22,"n_rows":14,"n_cols":10,"rows_kept":14}
["1. Kliknij komórkę B13, aby aktywować tabelę przestawną o nazwie „Suma z Liczba sprzedanych sztuk”."]
["2. Naciśnij klawisze ALT+JZ, L2, aby otworzyć listę pól tabeli przestawnej. Domyślnie fokus zostanie ustawiony na polu tekstowym wyszukaj: „Wpisz wyrazy do wyszukania” — edycja. Nie wpisuj niczego. Zamiast tego naciśnij jeden raz klawisz Tab. UWAGA: jeśli nie zostanie wyświetlona lista pól, ponownie naciśnij klawisze ALT+JZ, L2."]
["3. Za pomocą klawiszy strzałek i klawisza SPACJA zmodyfikuj ten przykład, aby pokazywał poszczególne produkty we własnych osobnych wierszach oraz poszczególne pory roku we własnych osobnych kolumnach."]
["Aby kontynuować korzystanie z tego samouczka, naciśnij klawisze CTRL+PAGE DOWN. Aby wrócić do poprzedniego arkusza, naciśnij klawisze CTRL+PAGE UP.",{"$nulls":8},{"$f":"IF(AND($B$15=\"Banany\",$G$28=1000),\"Doskonale! Umieszczono pole\",\" \")","v":" "}]
[{"$nulls":9},{"$f":"IF(AND($B$15=\"Banany\",$G$28=1000),\"wiersza po lewej stronie oraz \",\" \")","v":" "}]
[{"$nulls":9},{"$f":"IF(AND($B$15=\"Banany\",$G$28=1000),\"pole kolumny z czterema\",\" \")","v":" "}]
[{"$nulls":9},{"$f":"IF(AND($B$15=\"Banany\",$G$28=1000),\"nowymi kolumnami. Przewiń\",\" \")","v":" "}]
[{"$nulls":9},{"$f":"IF(AND($B$15=\"Banany\",$G$28=1000),\"w dół i kliknij przycisk Dalej…\",\" \")","v":" "}]
[]
[]
[]
[]
[null,"Suma z Liczba sprzedanych sztuk"]
[null,{"v":17758,"d":"17,758"}]

{"sheet":"23","index":23,"n_rows":16,"n_cols":18,"rows_kept":16}
["1. Kliknij komórkę B13, aby aktywować tabelę przestawną o nazwie „Suma z Liczba sprzedanych sztuk”.\n\n"]
["2. Naciśnij klawisze ALT+JZ, L2, aby otworzyć listę pól tabeli przestawnej. Domyślnie fokus zostanie ustawiony na polu tekstowym wyszukaj: „Wpisz wyrazy do wyszukania” — edycja. Nie wpisuj niczego. Zamiast tego naciśnij jeden raz klawisz Tab. UWAGA: jeśli nie zostanie wyświetlona lista pól, ponownie naciśnij klawisze ALT+JZ, L2."]
["3. Za pomocą klawisza Tab, klawiszy strzałek i klawisza SPACJA zmodyfikuj ten przykład, aby pokazywał przedstawicieli handlowych po lewej stronie, a pod nimi pory roku z wcięciami."]
["Aby kontynuować korzystanie z tego samouczka, naciśnij klawisze CTRL+PAGE DOWN. Aby wrócić do poprzedniego arkusza, naciśnij klawisze CTRL+PAGE UP."]
[{"$nulls":9},{"$f":"IF(AND($B$14=\"Roman\",$C$14=5036),\"Doskonale! Teraz dane są \",\" \")","v":" "}]
[{"$nulls":9},{"$f":"IF(AND($B$14=\"Roman\",$C$14=5036),\"bardziej czytelne. Przewiń w\",\" \")","v":" "}]
[{"$nulls":9},{"$f":"IF(AND($B$14=\"Roman\",$C$14=5036),\"dół i kliknij przycisk Dalej…\",\" \")","v":" "}]
[]
[]
[]
[]
[]
[null,null,"Etykiety kolumn"]
[null,null,"Roman",{"$nulls":3},"Roman Suma","Jerzy",{"$nulls":3},"Jerzy Suma","Joanna",{"$nulls":3},"Joanna Suma","Suma końcowa"]
[null,null,"Jesień","Wiosna","Lato","Zima",null,"Jesień","Wiosna","Lato","Zima",null,"Jesień","Wiosna","Lato","Zima"]
[null,"Suma z Liczba sprzedanych sztuk",933,{"v":1320,"d":"1,320"},{"v":1133,"d":"1,133"},{"v":1650,"d":"1,650"},{"v":5036,"d":"5,036"},{"v":3220,"d":"3,220"},{"v":2400,"d":"2,400"},{"v":1260,"d":"1,260"},{"v":1420,"d":"1,420"},{"v":8300,"d":"8,300"},{"v":1272,"d":"1,272"},{"v":1040,"d":"1,040"},{"v":1080,"d":"1,080"},{"v":1030,"d":"1,030"},{"v":4422,"d":"4,422"},{"v":17758,"d":"17,758"}]

{"sheet":"24","index":24,"n_rows":14,"n_cols":9,"rows_kept":14}
["1. Kliknij komórkę B13, aby aktywować tabelę przestawną o nazwie „Suma z Liczba sprzedanych sztuk”."]
["2. Naciśnij klawisze ALT+JZ, L2, aby otworzyć listę pól tabeli przestawnej. Domyślnie fokus zostanie ustawiony na polu tekstowym wyszukaj: „Wpisz wyrazy do wyszukania” — edycja. Nie wpisuj niczego. Zamiast tego naciśnij jeden raz klawisz Tab. UWAGA: jeśli nie zostanie wyświetlona lista pól, ponownie naciśnij klawisze ALT+JZ, L2."]
["3. Za pomocą klawisza Tab, klawiszy strzałek i klawisza Spacja zmodyfikuj ten przykład, aby poszczególni przedstawiciele handlowi znajdowali się we własnych osobnych polach kolumn, pory roku po lewej stronie, a produkty z wcięciami pod nimi."]
["4. Zaznacz komórkę I9 i wybierz, ile grejpfrutów sprzedał Jacek zimą."]
["Aby kontynuować korzystanie z tego samouczka, naciśnij klawisze CTRL+PAGE DOWN. Aby wrócić do poprzedniego arkusza, naciśnij klawisze CTRL+PAGE UP."]
[]
[]
[{"$nulls":8},"Wybierz jedną z komórek:"]
[]
[{"$nulls":8},{"$f":"IF($I$9=400,\"Dokładnie.\",IF($I$9=530,\"Spróbuj ponownie...\",IF($I$9=123,\"Niezupełnie tak.\",\" \")))","v":" "}]
[]
[]
[null,"Suma z Liczba sprzedanych sztuk"]
[null,{"v":17758,"d":"17,758"}]

{"sheet":"Dowiedz się więcej","index":25,"n_rows":12,"n_cols":1,"rows_kept":12}
["Gratulacje. Czy tabele przestawne nie są pomocnym narzędziem?"]
["Zachęcamy jednak do dalszej pracy! Kontynuuj naukę."]
["Więcej o tabelach przestawnych\nZ tego przydatnego artykułu o tabelach przestawnych dowiesz się, co jeszcze możesz zrobić."]
["Informacje o odświeżaniu\nPrzeczytaj ten istotny artykuł na temat odświeżania tabel przestawnych. "]
["Społeczność\nKomunikuj się z innymi entuzjastami programu Excel. Oni pomogą Tobie, a Ty im."]
[]
[" "]
["Dowiedz się więcej"]
["Dowiedz się więcej"]
["Dowiedz się więcej"]
["Dowiedz się więcej"]
["Społeczność"]